Cogmind - Beta 14 @@@ ROGUE MODE // 2024.09.29 @ 21:14:56 Player: Komeiji O. Result: Destroyed by D-53 Grenadier with Mini Grenade Launcher Performance ------------- Evolutions (0) 0 Regions Visited (2) 400 Robots Destroyed (17) 85 Value Destroyed (394) 394 Prototype IDs (0) 0 Alien Tech Used (0) 0 Bonus (0) 0 TOTAL SCORE: 879 Bonus ------- None Cogmind --------- Core Integrity 0/250 Matter 416/500 Energy 170/170 System Corruption 0% Temperature Cool (0) Movement Walking (140) Location -10/Mines Parts ------- > --- POWER (1) -------- Makeshift Power Source > --- PROPULSION (2) --- Makeshift Leg > --- UTILITY (2) ------ High-capacity Matter Pod Structural Scanner > --- WEAPON (2) ------- Makeshift Hammer > --- INVENTORY (5) ---- Ion Engine Aluminum Leg Flight Unit Heat Sink Terrain Scanner Peak State ------------ > --- POWER ------------ Makeshift Power Source > --- PROPULSION ------- Makeshift Leg Makeshift Leg > --- UTILITY ---------- High-capacity Matter Pod Structural Scanner > --- WEAPON ----------- Makeshift Hammer > --- INVENTORY -------- Aluminum Leg Flight Unit Heat Sink Terrain Scanner [Rating: 18] Favorites ----------- Power Light Ion Engine Engine Light Ion Engine Propulsion Aluminum Leg Leg Aluminum Leg Utility Structural Scanner Device Structural Scanner Storage High-capacity Matter Pod Protection Power Shielding Weapon EM Pulse Gun Energy Gun EM Pulse Gun Ballistic Cannon Light Cannon Launcher Grenade Launcher Special Weapon Mining Laser Impact Weapon Makeshift Hammer Build | -11 -10 -10 ------- Run | Yrd Mat Min Slots Evolved . | . . . Power . | . . . Propulsion . | . . . Utility . | . . . Weapon . | . . . Parts Attached 31 | 6 12 13 Power 4 | 1 . 3 Engine 4 | 1 . 3 Core . | . . . Reactor . | . . . Propulsion 6 | 2 1 3 Treads . | . . . Leg 6 | 2 1 3 Wheel . | . . . Hover . | . . . Flight . | . . . Utility 8 | 1 5 2 Device 6 | 1 4 1 Storage 1 | . . 1 Processor . | . . . Hackware . | . . . Protection 1 | . 1 . Artifact . | . . . Weapon 13 | 2 6 5 Energy Gun 6 | 2 2 2 Energy Cannon . | . . . Ballistic Gun . | . . . Ballistic Cannon 2 | . 2 . Launcher 2 | . 1 1 Special Weapon 1 | . 1 . Impact Weapon 2 | . . 2 Slashing Weapon . | . . . Piercing Weapon . | . . . Special Melee Weapon . | . . . Unidentified Prototypes . | . . . Parts Lost 6 | . 1 5 Power 1 | . . 1 Propulsion 2 | . . 2 Utility . | . . . Weapon 3 | . 1 2 Highest Loss Streak 4 | . 1 4 To Critical Strikes . | . . . Average Slot Usage (%) 97 | . 99 97 Engine 13 | . 14 13 Leg 27 | . 28 27 Device 16 | . 21 14 Storage 7 | . . 11 Protection 3 | . 5 2 Energy Gun 11 | . 5 14 Ballistic Cannon 2 | . 7 . Launcher 4 | . 13 . Impact Weapon 7 | . . 10 Peak Build Rating 18 | 8 9 18 Average Rating 8 | 5 7 10 On Entrance 4 | . 8 6 Naked Turns . | . . . Heaviest Build 13 | 8 11 13 Greatest Support 40 | 20 20 40 Greatest Overweight (x) 1 | . . 1 Average Overweight (x) . | . . . Largest Inventory Capacity 5 | 5 5 5 Average Capacity 5 | 5 5 5 Most Carried 5 | 1 5 5 Average Carried 4 | . 4 4 Final Capacity 5 | 5 5 5 Final Carried 5 | 1 5 5 Class Distribution -------------------- 91% | Mutant 8% | Derelict-Mutant Dominant Class ---------------- Mutant | -10/Materials Mutant | -10/Mines Resources | -11 -10 -10 ----------- Run | Yrd Mat Min Matter Collected 696 | 260 101 335 Remotely . | . . . Salvage Created 386 | 76 214 96 Parts 30 | 5 17 8 Haulers Intercepted . | . . . Recyclers Shooed . | . . . Parts Field Recycled . | . . . Retrieved Matter . | . . . Parts Self-Destructed . | . . . Prevented . | . . . Kills | -11 -10 -10 ------- Run | Yrd Mat Min Combat Hostiles Destroyed 14 | 1 9 4 Guns 4 | 1 . 3 AOE 9 | . 9 . Classes Destroyed 4 | 2 2 . Builder 1 | . 1 . Tunneler 2 | 1 1 . Swarmer 6 | . 3 3 Grunt 8 | 1 6 1 Best Kill Streak 5 | 2 4 5 Combat Bots Only 5 | 1 3 5 Max Kills in Single Turn 2 | 1 2 1 Gunslinging . | . . . Exploded 2 | . 2 . Melee . | . . . Uniques/NPCs Destroyed . | . . . Combat | -11 -10 -10 -------- Run | Yrd Mat Min Hostile Shots Fired 71 | 7 22 42 Missed 23 | 3 8 12 Damage Taken 889 | 42 310 537 Core 253 | 10 59 184 Absorbed by Shields . | . . . Redirected to Shielding 2 | . . 2 Core Remaining (%) 96 | 96 . . Volleys Fired 23 | 6 8 9 Largest 2 | 2 2 2 Hottest 80 | 80 65 80 Shots Fired 39 | 12 13 14 Gun 26 | 12 . 14 Cannon 5 | . 5 . Launcher 8 | . 8 . Special . | . . . Kinetic 5 | . 5 . Thermal . | . . . Explosive 8 | . 8 . Electromagnetic 26 | 12 . 14 Robot Hit Streak 2 | 2 2 2 Robot Miss Streak 3 | 1 3 3 Penetration Max . | . . . Secondary Targets 2 | . . 2 Max Gunslinging Chain 1 | . . 1 Shots Hit Robots 19 | 7 5 7 Core Hits 21 | 3 15 3 Critical Kills . | . . . Critical Parts Destroyed . | . . . Critical Strikes . | . . . Melee Attacks 4 | . . 4 Impact 4 | . . 4 Slashing . | . . . Piercing . | . . . Sneak Attacks . | . . . Combat Hostiles . | . . . Follow-up Attacks . | . . . Damage Inflicted 726 | 174 433 119 Guns 158 | 90 . 68 Cannons 17 | . 17 . Explosions 500 | 84 416 . Melee 51 | . . 51 Ramming . | . . . Kinetic 17 | . 17 . Thermal 84 | 84 . . Explosive 416 | . 416 . Electromagnetic 158 | 90 . 68 Impact 51 | . . 51 Slashing . | . . . Piercing . | . . . Highest Corruption . | . . . Average Corruption . | . . . Corruption Purged . | . . . Corruption Blocked . | . . . Overload Shots . | . . . Overflow Damage 21 | . . 21 Projectiles . | . . . Explosions . | . . . Melee 21 | . . 21 Knockbacks 1 | . 1 . Impact . | . . . Kinetic 1 | . 1 . Secondary . | . . . Self-Inflicted Damage 137 | . 137 . Shots 6 | . 6 . Rammed . | . . . Targets Rammed . | . . . Kicked . | . . . Crushed . | . . . Highest Temperature 114 | 114 12 72 Average Temperature 35 | 59 4 30 Received Heat Transfer 165 | 24 51 90 Siege Activations . | . . . Robots Corrupted 1 | . . 1 Combat Hostiles 1 | . . 1 Parts Fried . | . . . Impact Corruptions 1 | . . 1 Robots Melted . | . . . Combat Hostiles . | . . . Parts Melted . | . . . Heat Transferred 100 | 100 . . Parts Sabotaged . | . . . Parts Stolen . | . . . Parts Stripped . | . . . Power Chain Reactions 1 | 1 . . Alert | -11 -10 -10 ------- Run | Yrd Mat Min Peak Influence 323 | 25 323 137 Initial 67 | . 16 67 Average 98 | 11 176 74 Maximum Alert Level 1 | . 1 . Low Security (%) 82 | 100 44 100 Level 1 17 | . 55 . Level 2 . | . . . Level 3 . | . . . Level 4 . | . . . Level 5 . | . . . High Security . | . . . Max Security . | . . . Squads Dispatched 2 | . 2 . Investigation 1 | . 1 . Extermination . | . . . Reinforcement 1 | . 1 . Assault . | . . . Garrison . | . . . Intercept . | . . . Searches Triggered . | . . . Construction Impeded . | . . . Haulers Reinforced . | . . . Active Scanning Responses . | . . . Cargo Convoy Interrupts . | . . . Stealth | -11 -10 -10 --------- Run | Yrd Mat Min Distress Signals . | . . . Communications Jammed . | . . . Distress Signals . | . . . Times Spotted 21 | 1 13 7 Peak Tracking Total 4 | 1 4 3 Tactical Retreats 1 | . 1 . Traps | -11 -10 -10 ------- Run | Yrd Mat Min Traps Triggered 2 | . 2 . Indirectly . | . . . Trap Hack Attempts . | . . . Triggered . | . . . Disarmed . | . . . Reprogrammed . | . . . Reused . | . . . Traps Extracted . | . . . Installed . | . . . Triggered . | . . . Machines | -11 -10 -10 ---------- Run | Yrd Mat Min Machines Disabled 6 | . 6 . Max in Single Turn 3 | . 3 . Machines Repaired . | . . . Machines Dismantled . | . . . Machines Sabotaged . | . . . Overloaded Fab Kills . | . . . Hacking | -11 -10 -10 --------- Run | Yrd Mat Min Machines Accessed 1 | . 1 . Terminals 1 | . 1 . Fabricators . | . . . Repair Stations . | . . . Recycling Units . | . . . Scanalyzers . | . . . Garrison Access . | . . . Total Hacks 4 | . 4 . Successful 3 | . 3 . Failed 1 | . 1 . Catastrophic 1 | . 1 . Database Lockouts . | . . . Manual 1 | . 1 . Terminals 4 | . 4 . Fabricators . | . . . Repair Stations . | . . . Recycling Units . | . . . Scanalyzers . | . . . Garrison Access . | . . . Terminal Hacks 3 | . 3 . Record 3 | . 3 . Fabricator Hacks . | . . . Repair Station Hacks . | . . . Recycling Unit Hacks . | . . . Scanalyzer . | . . . Garrison Access Hacks . | . . . Unauthorized Hacks . | . . . Terminals . | . . . Fabricators . | . . . Repair Stations . | . . . Recycling Units . | . . . Scanalyzers . | . . . Garrison Access . | . . . Data Cores Recovered . | . . . Used . | . . . Hacking Detections 1 | . 1 . Full Trace Events . | . . . Feedback Events . | . . . Feedback Blocked . | . . . Robot Schematics Acquired . | . . . Robots Built . | . . . Authchips . | . . . Time . | . . . Total Robot Build Rating . | . . . Part Schematics Acquired . | . . . Parts Built . | . . . Authchips . | . . . Time . | . . . Total Part Build Rating . | . . . Parts Repaired . | . . . Time . | . . . Parts Recycled . | . . . Recycled Matter . | . . . Retrieved Matter . | . . . Retrieved Components . | . . . Parts Scanalyzed . | . . . Part Schematics Acquired . | . . . Parts Damaged . | . . . Bothacking | -11 -10 -10 ------------ Run | Yrd Mat Min Used RIF Installer . | . . . Robots Hacked . | . . . Non-combat . | . . . Combat . | . . . Robot Hacks Applied . | . . . Relay Couplers Released . | . . . Fabnet Peak Effective % . | . . . Robots Rewired . | . . . Allies Hacked . | . . . Hacks Repelled . | . . . Allies | -11 -10 -10 -------- Run | Yrd Mat Min Total Allies 2 | . . 2 Largest Group 2 | . . 2 Highest-Rated Group 45 | . . 45 Highest-Rated Ally 31 | . . 31 Total Orders . | . . . Ally Attacks 18 | . . 18 Total Damage 272 | . . 272 Kills . | . . . Allies Corrupted . | . . . Allies Melted . | . . . Intel | -11 -10 -10 ------- Run | Yrd Mat Min Robot Analysis Total . | . . . Derelict Logs Recovered 3 | . . 3 Drone Launches . | . . . Drone Recoveries . | . . . Exploration | -11 -10 -10 ------------- Run | Yrd Mat Min Turns Passed 1316 | 162 410 744 Spaces Moved 990 | 122 304 564 Core 17 | 17 . . Treads . | . . . Legs 973 | 105 304 564 Wheels . | . . . Hover . | . . . Flight . | . . . Fastest Speed 50 | 50 120 120 Average Speed 120 | 110 120 122 Slowest Speed 190 | 120 120 190 Overloaded Moves . | . . . Propulsion Burnouts . | . . . Robots Hopped . | . . . Cave-ins Triggered . | . . . Exploration Rate (%) 39 | 8 32 78 Regions Visited 2 Branch Regions 1 Pre-discovered Areas 1 | . . 1 Known Exits Taken . | . . . Unknown Exits Taken 2 | 1 1 . Scrap Searched 2 | . . 2 Spaces Dug 7 | . 7 . Terrain Destroyed 43 | . 43 . Melee . | . . . Projectile . | . . . AOE 43 | . 43 . Terrain Rammed . | . . . Walls Destroyed . | . . . Machines Disabled . | . . . Actions | -11 -10 -10 --------- Run | Yrd Mat Min Total 1064 | 134 332 598 Wait 2 | . . 2 Move 988 | 121 303 564 Hop . | . . . Pick Up 10 | 1 6 3 Fast Attach 8 | 6 1 1 Attach 4 | . . 4 Detach . | . . . Swap 19 | . 11 8 Drop 6 | . 3 3 Fire 23 | 6 8 9 Melee 4 | . . 4 Ram . | . . . Kick . | . . . Crush . | . . . Escape Stasis . | . . . Rewire . | . . . Trap . | . . . Miscellaneous . | . . . Route ------- -11/Scrapyard -10/Materials -10/Mines (discovered 1 exit: [*Mat]) History --------- Turn | Location | Event 2 | -11/Scrapyard | Met Revision 17 71 | -11/Scrapyard | Discovered new exit (range 8) 163 | -11/Scrapyard | Entered Materials 309 | -10/Materials | Build established: Mutant 485 | -10/Materials | Discovered new exit (range 15) 573 | -10/Materials | Entered Mines 628 | -10/Mines | Learned Materials security intel 709 | -10/Mines | A weapon hastily lodged in a ceiling crevice suddenly fell to the ground 796 | -10/Mines | Learned 4 Materials zone layouts 864 | -10/Mines | Assembled infested the area 956 | -10/Mines | Learned location of Storage (-7) 1141 | -10/Mines | Discovered new exit (range 13) 1249 | -10/Mines | Lost 4 parts (1p1n2w) 1309 | -10/Mines | Core integrity fell below 50% 1317 | -10/Mines | Core integrity fell below 20% 1317 | -10/Mines | Destroyed by D-53 Grenadier with Mini Grenade Launcher Last Messages --------------- 01216_ G-34 Mercenary IFF system glitched. 01216_ G-47 Trooper destroyed. 01218_ Lgt. Ion Engine destroyed. 01222_ Destroyed Heat Sink. 01222_ G-34 Mercenary system corrupted by crushing effect. 01223_ G-34 Mercenary system terminally corrupted. [Achievement: Power Corrupts] 01227_ Acquired Aluminum Leg. 01229_ Acquired 47 matter. 01241_ Acquired 14 matter. 01244_ Dropped Aluminum Leg. 01245_ Acquired Mak. Power Source. 01246_ Acquired Ion Engine. 01256_ Acquired 41 matter. 01304_ XN-P9L(g) destroyed. 01307_ Mak. Leg destroyed. 01308_ The unstable cave ceiling collapses. 01316_ D-53 Grenadier destroyed. Map ----- +----------------------------------------------------+ | ??????#### #######???#### ## | | ??????### #######??### ###### | | ??????## ###??## ####### | | ??????## ##??## ######???? | | ??????### ##??## ######????? | | ???????#### ###?## ####???????? | | ?????????### ###### ###????????? | | ??????????### < ##### ####???????? | | ???????????### ####???????? | | ????????????### #### ###??????? | | ????????????### = ####= ###?????? | | ?????????????## ###### ##?????? | | ?????????????## ######## ??? | | ????????????### = ###??#### ####?## | | ????????????### ##??? ### ####?## | | ????????????## ##?????## ##???## | | ????????????## ##??????? ##????? | | ????????????### ###??????? ##????? | | ?????????####### ###?????? ###????? | | ??????########## ####??? ###????? | | ?????###### ### ####?? %### ##?????? | | ?????### # # # ## # ##?????? | | ?????## # ##?? ####### | | ?????## # ??????## ####### | | ????### ## ??????## | | ????## d @ # ??????## ####### | | ####### # ??????## ####### | | ####### # ## ???????????????? | | ## # ???????????????? | | ## # #### #???????????? | | ##""" < ##???????????? | | ##""" ###???????????? | | ##""" # ####### ####???????????? | | ## #############????????????? | | ## # #????#####?????????????? | | ## ##### ???????????????????????? | | ############### ???????????????????????? | | ############???????????????????????????? | | ???????????????????????????????????????? | | ???????????????????????????????????????? | | ???????????????????????????????????????? | | ???????????????????????????????????????? | | ???????????????????????????????????????? | | ???????????????????????????????????????? | | | | | | | | | | | | | +----------------------------------------------------+ Best States ------------- Heat Dissipation 25 Energy Generation 15 Energy Capacity 250 Matter Stores 416 Matter Capacity 500 Sight Range 16 Robot Scan Range 14 Terrain Scan Range 16 Terrain Scan Density 10 Power Shielding 33 Evasion (%) 55 Item Schematics ----------------- None Robot Schematics ------------------ None Fabricated ------------ Nothing Alien Tech Used ----------------- None Achievements -------------- Power Corrupts Challenges ------------ None Game ------ Seed VampiricTechCloak Manual? 0 Play Time 00:26:44 Cumulative 1.6 hours Start 2024.09.29 @ 20:50:37 End 2024.09.29 @ 21:14:56 Sessions 1 Manual Loads 0 Difficulty Rogue Special Mode None Game No. 2 Rogue 2 Adventurer 0 Explorer 0 Win Type - Total 0 Types 0/0/0/0/0/0/0/0/0 Lore% 0 Gallery% 3 Achievement% 3 Wizard Run 0 Options --------- Layout 1 ASCII 0 Keyboard 0 Movement Vi Keybinds 0 Fullscreen 1 Font 48/Terminus++ Map View 50x35 Zoom Use 0% Tactical HUD 1 Map Filters NONE Filters NONE Steam 0 RUN: bb9e38eb-592f-463b-8b2f-23c7821cc1a4